Body Name,Date,Transaction Number,Invoice Number,Net Amount,VAT,Supplier Name,Supplier ID,Expense Area,Expense Type,Expense Code
Redditch Borough Council,09/05/2018,299055,1372,520.00 ,0.00 ,3 Lions Removals,6519,Bed And Breakfast Accom.,Other Fees,4360
Redditch Borough Council,30/05/2018,300151,CA-006855,"8,000.00 ",0.00 ,A To Z Builders,102858,Rbc Balance Sheet,Disabled Facilities Grant,8701
Redditch Borough Council,02/05/2018,298412,2ND INSTALLMENT,"2,500.00 ",0.00 ,Acorns Childrens Hospice,66690,Grants To Vol Sector,Grants & Subscriptions,4650
Redditch Borough Council,31/05/2018,300132,2228,"4,750.75 ",950.15 ,Alan Field Associates,1512,Theatre Management,Professional Fees,4350
Redditch Borough Council,16/05/2018,299413,18825,553.78 ,110.75 ,Alliance Electrical Wholesalers Ltd,6451,Public Buildings,Materials,4170
Redditch Borough Council,02/05/2018,298740,000081,"2,551.78 ",510.36 ,Amick Productions Ltd,102524,Theatre Management,Professional Fees,4350
Redditch Borough Council,16/05/2018,299397,7692480,0.00 ,102.80 ,Antalis Limited,84,Print Room Stocks,Stock Account (Cedar),1201
Redditch Borough Council,16/05/2018,299397,7692480,-1.00 ,-0.20 ,Antalis Limited,84,Print Room Stocks,Stock Variance,1203
Redditch Borough Council,30/05/2018,298357,00293612,"48,530.00 ","9,706.00 ",Anthony Collins Solicitors Llp,1439,Policy And Management,Professional Fees,4350
Redditch Borough Council,30/05/2018,298928,00294952,"11,126.52 ","2,225.30 ",Anthony Collins Solicitors Llp,1439,Policy And Management,Professional Fees,4350
Redditch Borough Council,02/05/2018,298739,ABPLTD0193,"6,578.45 ","1,315.69 ",Anton Benson Productions Ltd,63797,Theatre Management,Professional Fees,4350
Redditch Borough Council,02/05/2018,298714,0000129,780.00 ,156.00 ,Anywhere Care Ltd,101663,Lifeline - Support,Furniture & Equipment Purchase,4000
Redditch Borough Council,30/05/2018,299793,0000142,775.00 ,155.00 ,Anywhere Care Ltd,101663,Lifeline - Support,Furniture & Equipment Purchase,4000
Redditch Borough Council,16/05/2018,299456,MAY 17-MARCH 18,"-4,555.32 ",0.00 ,Aon Limited,83,Finance,Insurance Commission,6384
Redditch Borough Council,16/05/2018,299456,MAY 17-MARCH 18,"25,480.70 ",0.00 ,Aon Limited,83,Rbc Balance Sheet, Tenants Ins,1389
Redditch Borough Council,09/05/2018,298624,31494,"1,189.02 ",237.80 ,Arcane Direct Marketing,4714,Theatre Management,Advertising Publicity & Prom,4700
Redditch Borough Council,09/05/2018,299090,932897121,0.00 ,119.51 ,Arco Central,98,Crossgate Stocks,Stock Account (Cedar),1201
Redditch Borough Council,23/05/2018,297615,SW00210146,723.06 ,144.61 ,Arden Construction Ltd,2033,Hra Responsive Repairs,Building Maintenance,3100
Redditch Borough Council,23/05/2018,299072,SW00210208,990.23 ,198.05 ,Arden Construction Ltd,2033,Hra Responsive Repairs,Building Maintenance,3100
Redditch Borough Council,23/05/2018,299073,SW00210203,756.64 ,151.33 ,Arden Construction Ltd,2033,Hra Responsive Repairs,Building Maintenance,3100
Redditch Borough Council,23/05/2018,299074,SW00210200,806.25 ,161.25 ,Arden Construction Ltd,2033,Hra Responsive Repairs,Building Maintenance,3100
Redditch Borough Council,23/05/2018,299075,SW00210199,806.25 ,161.25 ,Arden Construction Ltd,2033,Hra Responsive Repairs,Building Maintenance,3100
Redditch Borough Council,23/05/2018,299076,SW00210201,"1,200.15 ",240.03 ,Arden Construction Ltd,2033,Hra Responsive Repairs,Building Maintenance,3100
Redditch Borough Council,23/05/2018,299077,SW00210202,"2,747.20 ",549.44 ,Arden Construction Ltd,2033,Hra Responsive Repairs,Building Maintenance,3100
Redditch Borough Council,23/05/2018,299078,SW00210204,"1,390.12 ",278.02 ,Arden Construction Ltd,2033,Hra Responsive Repairs,Building Maintenance,3100
Redditch Borough Council,23/05/2018,299079,SW00210205,"2,827.19 ",565.44 ,Arden Construction Ltd,2033,Hra Responsive Repairs,Building Maintenance,3100
Redditch Borough Council,23/05/2018,299080,SW00210206,"1,672.55 ",334.51 ,Arden Construction Ltd,2033,Hra Responsive Repairs,Building Maintenance,3100
Redditch Borough Council,23/05/2018,299081,SW00210207,"2,407.92 ",481.58 ,Arden Construction Ltd,2033,Hra Responsive Repairs,Building Maintenance,3100
Redditch Borough Council,23/05/2018,299256,SW00210211,"1,087.00 ",217.40 ,Arden Construction Ltd,2033,Hra Responsive Repairs,Building Maintenance,3100
Redditch Borough Council,30/05/2018,299648,SW00210217,977.02 ,195.40 ,Arden Construction Ltd,2033,Hra Responsive Repairs,Building Maintenance,3100
Redditch Borough Council,30/05/2018,299657,SW00210226,"1,111.37 ",222.27 ,Arden Construction Ltd,2033,Hra Responsive Repairs,Building Maintenance,3100
Redditch Borough Council,30/05/2018,299660,SW00210230,632.20 ,126.44 ,Arden Construction Ltd,2033,Hra Responsive Repairs,Building Maintenance,3100
Redditch Borough Council,30/05/2018,299667,SW00210235,642.58 ,128.52 ,Arden Construction Ltd,2033,Hra Responsive Repairs,Building Maintenance,3100
Redditch Borough Council,30/05/2018,300152,CA-007157,"2,452.80 ",0.00 ,Aspire Drives,102857,Rbc Balance Sheet,Disabled Facilities Grant,8701
Redditch Borough Council,23/05/2018,299106,7742,"3,465.00 ",693.00 ,Autocross Euroshel Ltd,2642,Co-Ordination,Other Fees,4360
Redditch Borough Council,02/05/2018,298582,16284-6827,530.00 ,0.00 ,B & Q Plc (Vouchers ),105,Hra Voids Repairs,Building Maintenance,3100
Redditch Borough Council,23/05/2018,299818,BH51638,"14,218.00 ","2,843.60 ",Baily Garner Llp,102739,Head Of Leisure & Cultural Ser,Professional Fees,4350
Redditch Borough Council,02/05/2018,298065,441420,791.36 ,158.27 ,Bell Plumbing Supplies,6981,Planned,Materials,4170
Redditch Borough Council,02/05/2018,298066,441418,778.91 ,155.78 ,Bell Plumbing Supplies,6981,Planned,Materials,4170
Redditch Borough Council,02/05/2018,298068,441425,776.51 ,155.30 ,Bell Plumbing Supplies,6981,Planned,Materials,4170
Redditch Borough Council,02/05/2018,298069,441423,765.54 ,153.11 ,Bell Plumbing Supplies,6981,Planned,Materials,4170
Redditch Borough Council,02/05/2018,298070,441419,897.90 ,179.58 ,Bell Plumbing Supplies,6981,Planned,Materials,4170
Redditch Borough Council,02/05/2018,298098,441424,751.89 ,150.38 ,Bell Plumbing Supplies,6981,Planned,Materials,4170
Redditch Borough Council,02/05/2018,298099,441422,769.86 ,153.97 ,Bell Plumbing Supplies,6981,Planned,Materials,4170
Redditch Borough Council,02/05/2018,298109,441421,745.51 ,149.10 ,Bell Plumbing Supplies,6981,Planned,Materials,4170
Redditch Borough Council,09/05/2018,298418,442857,745.25 ,149.05 ,Bell Plumbing Supplies,6981,Planned,Materials,4170
Redditch Borough Council,09/05/2018,298419,442852,797.59 ,159.52 ,Bell Plumbing Supplies,6981,Planned,Materials,4170
Redditch Borough Council,09/05/2018,298421,442855,752.91 ,150.58 ,Bell Plumbing Supplies,6981,Planned,Materials,4170
Redditch Borough Council,09/05/2018,298422,442856,897.90 ,179.58 ,Bell Plumbing Supplies,6981,Planned,Materials,4170
Redditch Borough Council,09/05/2018,298423,442851,775.37 ,155.07 ,Bell Plumbing Supplies,6981,Planned,Materials,4170
Redditch Borough Council,09/05/2018,298424,442858,871.90 ,174.38 ,Bell Plumbing Supplies,6981,Planned,Materials,4170
Redditch Borough Council,09/05/2018,298425,442850,752.91 ,150.58 ,Bell Plumbing Supplies,6981,Planned,Materials,4170
Redditch Borough Council,09/05/2018,298426,442854,926.66 ,185.33 ,Bell Plumbing Supplies,6981,Planned,Materials,4170
Redditch Borough Council,09/05/2018,298427,442853,804.49 ,160.90 ,Bell Plumbing Supplies,6981,Planned,Materials,4170
Redditch Borough Council,09/05/2018,298773,444335,923.12 ,184.62 ,Bell Plumbing Supplies,6981,Planned,Materials,4170
Redditch Borough Council,09/05/2018,298774,444337,746.01 ,149.20 ,Bell Plumbing Supplies,6981,Planned,Materials,4170
Redditch Borough Council,09/05/2018,298775,444332,746.01 ,149.20 ,Bell Plumbing Supplies,6981,Planned,Materials,4170
Redditch Borough Council,09/05/2018,298776,444334,788.41 ,157.68 ,Bell Plumbing Supplies,6981,Planned,Materials,4170
Redditch Borough Council,09/05/2018,298777,444338,815.25 ,163.05 ,Bell Plumbing Supplies,6981,Planned,Materials,4170
Redditch Borough Council,09/05/2018,298792,445004,752.41 ,150.48 ,Bell Plumbing Supplies,6981,Planned,Materials,4170
Redditch Borough Council,16/05/2018,299101,445908,866.02 ,173.20 ,Bell Plumbing Supplies,6981,Planned,Materials,4170
Redditch Borough Council,16/05/2018,299102,445909,761.69 ,152.34 ,Bell Plumbing Supplies,6981,Planned,Materials,4170
Redditch Borough Council,16/05/2018,299103,445906,0.00 ,100.00 ,Bell Plumbing Supplies,6981,Crossgate Stocks,Stock Account (Cedar),1201
Redditch Borough Council,30/05/2018,299596,447117,747.43 ,149.49 ,Bell Plumbing Supplies,6981,Planned,Materials,4170
Redditch Borough Council,30/05/2018,299597,447112,752.91 ,150.58 ,Bell Plumbing Supplies,6981,Planned,Materials,4170
Redditch Borough Council,30/05/2018,299599,447109,750.81 ,150.16 ,Bell Plumbing Supplies,6981,Planned,Materials,4170
Redditch Borough Council,30/05/2018,299601,447118,795.39 ,159.08 ,Bell Plumbing Supplies,6981,Planned,Materials,4170
Redditch Borough Council,30/05/2018,299602,447114,890.10 ,178.02 ,Bell Plumbing Supplies,6981,Planned,Materials,4170
Redditch Borough Council,30/05/2018,299606,447110,803.47 ,160.69 ,Bell Plumbing Supplies,6981,Planned,Materials,4170
Redditch Borough Council,23/05/2018,298300,79694736,"1,317.80 ",253.85 ,Bidfood Foodservice,4449,Theatre Management,Catering Provisions,4200
Redditch Borough Council,23/05/2018,299914,DED MAY 18,746.83 ,0.00 ,Birmingham Hospital Saturday Fund,1508,Rbc Balance Sheet,Payroll Deductions,1488
Redditch Borough Council,30/05/2018,298975,36303,"6,861.67 ","1,372.33 ",Blachere Illumination Uk,5315,Rbc Christmas Lights,Furniture & Equipment Purchase,4000
Redditch Borough Council,23/05/2018,299789,5881257,526.00 ,5.86 ,Blakemore Food Service Ltd,5372,St Davids Hse Luncheon Club,Catering Provisions,4200
Redditch Borough Council,02/05/2018,298090,26183820Q020,"1,456.58 ",291.32 ,British Telecommunications Plc,153,Rbc It Costs,Ict,4500
Redditch Borough Council,02/05/2018,298091,26183657Q020,"1,187.88 ",237.58 ,British Telecommunications Plc,153,Rbc It Costs,Ict,4500
Redditch Borough Council,02/05/2018,298629,26183888Q026,"1,397.50 ",279.50 ,British Telecommunications Plc,153,Rbc It Costs,Ict,4500
Redditch Borough Council,02/05/2018,298745,PROJECT BROS,"1,249.00 ",0.00 ,Bromsgrove And Redditch Network,5680,Grants To Vol Sector,Grants & Subscriptions,4650
Redditch Borough Council,02/05/2018,298747,VOLUNTEER CENT,"1,400.00 ",0.00 ,Bromsgrove And Redditch Network,5680,Grants To Vol Sector,Grants & Subscriptions,4650
Redditch Borough Council,09/05/2018,298632,800820369,"22,447.95 ","4,489.59 ",Bromsgrove District Council,1114,Head Of Leisure & Cultural Ser,B'Grove Shared Services Cost,5012
Redditch Borough Council,09/05/2018,298634,800820377,"37,189.02 ","7,437.80 ",Bromsgrove District Council,1114,Housing Policy,B'Grove Shared Services Cost,5012
Redditch Borough Council,09/05/2018,298634,800820377,"5,100.00 ","1,020.00 ",Bromsgrove District Council,1114,Travellers & Unauth Campers,B'Grove Shared Services Cost,5012
Redditch Borough Council,23/05/2018,299370,800820652,"2,579.00 ",515.80 ,Bromsgrove District Council,1114,Pest Control,Other Fees,4360
Redditch Borough Council,23/05/2018,299370,800820652,"10,510.00 ","2,102.00 ",Bromsgrove District Council,1114,Public Health,Other Fees,4360
Redditch Borough Council,23/05/2018,299371,800820679,"132,250.00 ",0.00 ,Bromsgrove District Council,1114,Public Health,Other Local Authorities,5009
Redditch Borough Council,23/05/2018,299372,800820687,"27,248.09 ","5,449.62 ",Bromsgrove District Council,1114,Chief Executive,B'Grove Shared Services Cost,5012
Redditch Borough Council,23/05/2018,299372,800820687,"15,224.74 ","3,044.95 ",Bromsgrove District Council,1114,Communications,B'Grove Shared Services Cost,5012
Redditch Borough Council,23/05/2018,299372,800820687,"35,931.02 ","7,186.20 ",Bromsgrove District Council,1114,Executive Director F&R,B'Grove Shared Services Cost,5012
Redditch Borough Council,23/05/2018,299372,800820687,"1,060.64 ",212.13 ,Bromsgrove District Council,1114,P A & Directorate Support,B'Grove Shared Services Cost,5012
Redditch Borough Council,23/05/2018,299372,800820687,"27,781.06 ","5,556.21 ",Bromsgrove District Council,1114,Print & Reprographic Unit,B'Grove Shared Services Cost,5012
Redditch Borough Council,23/05/2018,299372,800820687,"12,012.37 ","2,402.47 ",Bromsgrove District Council,1114,Redditch Partnership (Was 0421,B'Grove Shared Services Cost,5012
Redditch Borough Council,30/05/2018,299857,800825344,"16,558.50 ","3,311.70 ",Bromsgrove District Council,1114,Business Trans Costs,B'Grove Shared Services Cost,5012
Redditch Borough Council,30/05/2018,299857,800825344,"5,007.00 ","1,001.40 ",Bromsgrove District Council,1114,Equalities,B'Grove Shared Services Cost,5012
Redditch Borough Council,30/05/2018,299857,800825344,"11,530.00 ","2,306.00 ",Bromsgrove District Council,1114,Head Of Business Transformatio,B'Grove Shared Services Cost,5012
Redditch Borough Council,30/05/2018,299857,800825344,"-9,469.00 ","-1,893.80 ",Bromsgrove District Council,1114,Policy,B'Grove Shared Services Cost,5012
Redditch Borough Council,30/05/2018,299860,800826758,"13,098.09 ","2,619.62 ",Bromsgrove District Council,1114,Head Of Customer Services,B'Grove Shared Services Cost,5012
Redditch Borough Council,30/05/2018,299888,800827290,"42,226.35 ","8,445.27 ",Bromsgrove District Council,1114,Community Parks & Open Spaces,B'Grove Shared Services Cost,5012
Redditch Borough Council,30/05/2018,299888,800827290,"45,281.59 ","9,056.32 ",Bromsgrove District Council,1114,Crematoria,B'Grove Shared Services Cost,5012
Redditch Borough Council,30/05/2018,299888,800827290,"17,273.85 ","3,454.77 ",Bromsgrove District Council,1114,Engineering And Design,B'Grove Shared Services Cost,5012
Redditch Borough Council,30/05/2018,299888,800827290,"101,543.21 ","20,308.64 ",Bromsgrove District Council,1114,Env Services Mgmt & Support,B'Grove Shared Services Cost,5012
Redditch Borough Council,30/05/2018,299888,800827290,"57,906.98 ","11,581.40 ",Bromsgrove District Council,1114,Env Services Pool (Core Team 4,B'Grove Shared Services Cost,5012
Redditch Borough Council,30/05/2018,299888,800827290,"19,987.93 ","3,997.59 ",Bromsgrove District Council,1114,Grounds Maint - Cemeteries,B'Grove Shared Services Cost,5012
Redditch Borough Council,30/05/2018,299888,800827290,"5,921.06 ","1,184.21 ",Bromsgrove District Council,1114,Head Of Environmental Ser,B'Grove Shared Service R/C,6112
Redditch Borough Council,30/05/2018,299888,800827290,"129,435.56 ","25,887.11 ",Bromsgrove District Council,1114,Household Waste Collection,B'Grove Shared Services Cost,5012
Redditch Borough Council,30/05/2018,299888,800827290,"26,892.10 ","5,378.42 ",Bromsgrove District Council,1114,Minor Works Team,B'Grove Shared Services Cost,5012
Redditch Borough Council,30/05/2018,299888,800827290,"89,782.25 ","17,956.45 ",Bromsgrove District Council,1114,Rbc Hedgecutting,B'Grove Shared Services Cost,5012
Redditch Borough Council,30/05/2018,299888,800827290,"57,246.97 ","11,449.39 ",Bromsgrove District Council,1114,Rbc Vehicle Workhop,B'Grove Shared Services Cost,5012
Redditch Borough Council,30/05/2018,299888,800827290,"265,008.31 ","53,001.66 ",Bromsgrove District Council,1114,Redditch Place Teams General,B'Grove Shared Services Cost,5012
Redditch Borough Council,30/05/2018,299888,800827290,"32,063.31 ","6,412.66 ",Bromsgrove District Council,1114,Stores Oncost Account,B'Grove Shared Services Cost,5012
Redditch Borough Council,30/05/2018,299888,800827290,"44,633.27 ","8,926.65 ",Bromsgrove District Council,1114,Strategic Routes & Tractors,B'Grove Shared Services Cost,5012
Redditch Borough Council,30/05/2018,299888,800827290,"8,209.61 ","1,641.92 ",Bromsgrove District Council,1114,Sweepers & Hiabs,B'Grove Shared Services Cost,5012
Redditch Borough Council,30/05/2018,299893,800827304,"76,892.00 ","15,378.40 ",Bromsgrove District Council,1114,Rbc It Costs,B'Grove Shared Services Cost,5012
Redditch Borough Council,30/05/2018,299894,800827320,"63,867.02 ","12,773.40 ",Bromsgrove District Council,1114,Hra Interim Arrangements,Salaries,3000
Redditch Borough Council,30/05/2018,299895,800825336,"26,078.39 ","5,215.68 ",Bromsgrove District Council,1114,Building Control,B'Grove Shared Services Cost,5012
Redditch Borough Council,30/05/2018,299895,800825336,"107,386.00 ","21,477.20 ",Bromsgrove District Council,1114,Planning Policy,B'Grove Shared Services Cost,5012
Redditch Borough Council,30/05/2018,299896,800826766,"10,760.11 ","2,152.02 ",Bromsgrove District Council,1114,Electoral Services,B'Grove Shared Services Cost,5012
Redditch Borough Council,30/05/2018,299896,800826766,"27,819.39 ","5,563.88 ",Bromsgrove District Council,1114,"Head Of Legal, Equal & Dem Ser",B'Grove Shared Services Cost,5012
Redditch Borough Council,30/05/2018,299896,800826766,"-1,399.15 ",-279.83 ,Bromsgrove District Council,1114,Land Charges,B'Grove Shared Services Cost,5012
Redditch Borough Council,30/05/2018,299896,800826766,"54,538.90 ","10,907.78 ",Bromsgrove District Council,1114,Legal Services,B'Grove Shared Services Cost,5012
Redditch Borough Council,30/05/2018,299896,800826766,"52,128.87 ","10,425.77 ",Bromsgrove District Council,1114,Members & Committee Services,B'Grove Shared Services Cost,5012
Redditch Borough Council,30/05/2018,299896,800826766,"14,048.93 ","2,809.79 ",Bromsgrove District Council,1114,Register Of Electors,B'Grove Shared Services Cost,5012
Redditch Borough Council,30/05/2018,299897,800827509,"27,189.76 ","5,437.96 ",Bromsgrove District Council,1114,Household Waste Collection,Other Local Authorities,5009
Redditch Borough Council,30/05/2018,299898,800827517,242.50 ,0.00 ,Bromsgrove District Council,1114,Hra Equipment & Adaptations,Licencing,3754
Redditch Borough Council,30/05/2018,299898,800827517,242.50 ,0.00 ,Bromsgrove District Council,1114,Hra Responsive Repairs,Licencing,3754
Redditch Borough Council,30/05/2018,299898,800827517,727.50 ,0.00 ,Bromsgrove District Council,1114,Hra Voids Repairs,Licencing,3754
Redditch Borough Council,30/05/2018,299898,800827517,"1,380.00 ",0.00 ,Bromsgrove District Council,1114,Redditch Place Teams General,Licencing,3754
Redditch Borough Council,23/05/2018,299727,383835,"1,770.40 ",354.08 ,Browne Jacobson Llp,67304,Head Of Leisure & Cultural Ser,Professional Fees,4350
Redditch Borough Council,23/05/2018,299863,20026551,"33,594.01 ","6,718.80 ",Bt Redcare,1800,Cctv Operating Costs,Telephones,4450
Redditch Borough Council,30/05/2018,300159,16/4/18,"4,545.45 ",0.00 ,Burkin Roofing,66523,Rbc Balance Sheet,Lifetime Grant,8704
Redditch Borough Council,30/05/2018,300160,16/4/18,"2,304.55 ",0.00 ,Burkin Roofing,66523,Rbc Balance Sheet,Lifetime Grant,8704
Redditch Borough Council,09/05/2018,299088,2417,"6,060.00 ",0.00 ,Candor Care Ltd,5642,Rbc Balance Sheet,Disabled Facilities Grant,8701
Redditch Borough Council,30/05/2018,300161,2416,"5,025.00 ",0.00 ,Candor Care Ltd,5642,Rbc Balance Sheet,Disabled Facilities Grant,8701
Redditch Borough Council,16/05/2018,299287,PSINV0100155844,0.00 ,107.64 ,Carver Wolverhampton Limited.,117,Crossgate Stocks,Stock Account (Cedar),1201
Redditch Borough Council,09/05/2018,298755,INV1431,"1,875.00 ",375.00 ,Cdc Technical Services Ltd,101660,Safer & Stronger Communities,Other Fees,4360
Redditch Borough Council,23/05/2018,299468,RED/231505,0.00 ,119.84 ,Cef - City Electrical Factors Ltd,113,Crossgate Stocks,Stock Account (Cedar),1201
Redditch Borough Council,16/05/2018,299280,CFH014911,872.44 ,174.49 ,Cfh Docmail Ltd,65783,Housing Locality Service,Postage,4400
Redditch Borough Council,16/05/2018,299281,CFH014912,"1,455.22 ",291.04 ,Cfh Docmail Ltd,65783,Housing Locality Service,Postage,4400
Redditch Borough Council,23/05/2018,299672,CFH014739,"1,169.64 ",233.93 ,Cfh Docmail Ltd,65783,Central Post,Postage,4400
Redditch Borough Council,23/05/2018,299783,CFH014825,"2,214.34 ",442.87 ,Cfh Docmail Ltd,65783,Central Post,Postage,4400
Redditch Borough Council,23/05/2018,299791,DM411155,"1,680.25 ",336.05 ,Cfh Docmail Ltd,65783,Central Post,Postage,4400
Redditch Borough Council,23/05/2018,299792,DM411159,629.98 ,126.00 ,Cfh Docmail Ltd,65783,Housing Locality Service,Postage,4400
Redditch Borough Council,30/05/2018,300148,CS63270101,"4,581.50 ",916.30 ,Cfh Docmail Ltd,65783,Corporate Expenses,Advertising Publicity & Prom,4700
Redditch Borough Council,23/05/2018,299918,DED MAY 18,976.48 ,0.00 ,Child Maintenance Service,60451,Rbc Balance Sheet,Payroll Deductions,1488
Redditch Borough Council,09/05/2018,298945,2194AAX527,0.00 ,114.35 ,City Plumbing Supplies Ltd (Pts),395,Crossgate Stocks,Stock Account (Cedar),1201
Redditch Borough Council,09/05/2018,298947,2194AAX525,0.00 ,408.68 ,City Plumbing Supplies Ltd (Pts),395,Crossgate Stocks,Stock Account (Cedar),1201
Redditch Borough Council,16/05/2018,298955,2194AAX574,"1,501.23 ",300.26 ,City Plumbing Supplies Ltd (Pts),395,Planned,Materials,4170
Redditch Borough Council,09/05/2018,299056,C/HM164770,"1,165.00 ",233.00 ,Civica Uk Limited,1233,Policy And Management,Professional Fees,4350
Redditch Borough Council,30/05/2018,299472,IC/RBI65494,"3,178.86 ",635.77 ,Civica Uk Limited,1233,Single System,Ict,4500
Redditch Borough Council,30/05/2018,299715,C/RB165372,"3,000.00 ",600.00 ,Civica Uk Limited,1233,Welfare Support,Ict,4500
Redditch Borough Council,30/05/2018,299717,C/RB165371,"1,200.00 ",240.00 ,Civica Uk Limited,1233,Welfare Support,Ict,4500
Redditch Borough Council,30/05/2018,299807,C/RB165576,500.00 ,100.00 ,Civica Uk Limited,1233,Welfare Support,Ict,4500
Redditch Borough Council,16/05/2018,298641,AP73769-001,"14,911.07 ","2,982.21 ",Clc Contractors Ltd,61737,Hra Voids Repairs,Building Maintenance,3100
Redditch Borough Council,16/05/2018,299411,SIN167839,"1,782.20 ",356.44 ,Clearwater Technology Ltd,6699,Hra Responsive Repairs,Building Maintenance,3100
Redditch Borough Council,16/05/2018,298798,13056,"2,550.00 ",510.00 ,Cooper Mobile Services Limited,2549,Household Waste Collection,Vehicle Hire,3800
Redditch Borough Council,16/05/2018,298799,13057,"2,700.00 ",540.00 ,Cooper Mobile Services Limited,2549,Household Waste Collection,Vehicle Hire,3800
Redditch Borough Council,16/05/2018,298801,13120,"1,200.00 ",240.00 ,Cooper Mobile Services Limited,2549,Household Waste Collection,Vehicle Hire,3800
Redditch Borough Council,16/05/2018,298802,13121,"3,000.00 ",600.00 ,Cooper Mobile Services Limited,2549,Household Waste Collection,Vehicle Hire,3800
Redditch Borough Council,16/05/2018,298804,13122,"3,000.00 ",600.00 ,Cooper Mobile Services Limited,2549,Household Waste Collection,Vehicle Hire,3800
Redditch Borough Council,16/05/2018,299010,6560,"6,230.00 ","1,246.00 ",County Infrastructure Service Ltd,6668,Rbc Balance Sheet,Contract Payments,8131
Redditch Borough Council,23/05/2018,299703,3015209,0.00 ,"2,371.20 ",Craemer Uk Limited,5471,Crossgate Stocks,Stock Account (Cedar),1201
Redditch Borough Council,16/05/2018,299458,068PD0013173917,"226,075.54 ",0.00 ,Cumbernauld Rms (Accounts/Payments),1488,Rbc Balance Sheet,Payroll Deductions,1488
Redditch Borough Council,16/05/2018,299460,068-PD00131739,"3,260.00 ",0.00 ,Cumbernauld Rms (Accounts/Payments),1488,Corporate Staff Costs,Apprentice Levy,3048
Redditch Borough Council,30/05/2018,300156,795178,"3,009.06 ",0.00 ,Dodd Group,7087,Rbc Balance Sheet,Disabled Facilities Grant,8701
Redditch Borough Council,30/05/2018,300157,795181,"1,221.54 ",0.00 ,Dodd Group,7087,Rbc Balance Sheet,Disabled Facilities Grant,8701
Redditch Borough Council,30/05/2018,300158,772162,"2,981.32 ",0.00 ,Dodd Group,7087,Rbc Balance Sheet,Disabled Facilities Grant,8701
Redditch Borough Council,09/05/2018,299053,116,"2,616.00 ",0.00 ,Redacted - Personal Data Protection,5065,Crematoria,Professional Fees,4350
Redditch Borough Council,16/05/2018,293319,SI07852890,508.61 ,101.72 ,Dulux Decorator Centres,1082,Crossgate Stocks,Stock Account (Cedar),1201
Redditch Borough Council,09/05/2018,298742,01272587596,64.75 ,12.95 ,E E Limited ****Airtime Only****,3656,Arts Development And Support,Telephones,4450
Redditch Borough Council,09/05/2018,298742,01272587596,2.75 ,0.55 ,E E Limited ****Airtime Only****,3656,Batchley Neighbourhood Office,Telephones,4450
Redditch Borough Council,09/05/2018,298742,01272587596,5.50 ,1.10 ,E E Limited ****Airtime Only****,3656,Benefits,Telephones,4450
Redditch Borough Council,09/05/2018,298742,01272587596,10.25 ,2.04 ,E E Limited ****Airtime Only****,3656,B'Grove Community Safety,Telephones,4450
Redditch Borough Council,09/05/2018,298742,01272587596,5.50 ,1.10 ,E E Limited ****Airtime Only****,3656,Bromsgrove Building Services,Telephones,4450
Redditch Borough Council,09/05/2018,298742,01272587596,2.75 ,0.55 ,E E Limited ****Airtime Only****,3656,Bromsgrove Cctv,Telephones,4450
Redditch Borough Council,09/05/2018,298742,01272587596,37.14 ,7.43 ,E E Limited ****Airtime Only****,3656,Building Better Opportunities,Telephones,4450
Redditch Borough Council,09/05/2018,298742,01272587596,20.50 ,4.10 ,E E Limited ****Airtime Only****,3656,Business Development Services,Telephones,4450
Redditch Borough Council,09/05/2018,298742,01272587596,20.50 ,4.10 ,E E Limited ****Airtime Only****,3656,Business Dev Manager,Telephones,4450
Redditch Borough Council,09/05/2018,298742,01272587596,5.50 ,1.10 ,E E Limited ****Airtime Only****,3656,Caretakers,Telephones,4450
Redditch Borough Council,09/05/2018,298742,01272587596,10.25 ,2.05 ,E E Limited ****Airtime Only****,3656,Cctv Operating Costs,Telephones,4450
Redditch Borough Council,09/05/2018,298742,01272587596,2.75 ,0.55 ,E E Limited ****Airtime Only****,3656,Cleaners Oncost,Telephones,4450
Redditch Borough Council,09/05/2018,298742,01272587596,73.02 ,14.60 ,E E Limited ****Airtime Only****,3656,Community Centres,Telephones,4450
Redditch Borough Council,09/05/2018,298742,01272587596,402.53 ,80.51 ,E E Limited ****Airtime Only****,3656,Community Development,Telephones,4450
Redditch Borough Council,09/05/2018,298742,01272587596,27.00 ,5.40 ,E E Limited ****Airtime Only****,3656,Community Parks & Open Spaces,Telephones,4450
Redditch Borough Council,09/05/2018,298742,01272587596,26.00 ,5.20 ,E E Limited ****Airtime Only****,3656,Community Safety,Telephones,4450
Redditch Borough Council,09/05/2018,298742,01272587596,22.00 ,4.40 ,E E Limited ****Airtime Only****,3656,Concessionary Travel,Telephones,4450
Redditch Borough Council,09/05/2018,298742,01272587596,10.25 ,2.05 ,E E Limited ****Airtime Only****,3656,Cultural Services Manager,Telephones,4450
Redditch Borough Council,09/05/2018,298742,01272587596,10.25 ,2.05 ,E E Limited ****Airtime Only****,3656,Customer Service Centres,Telephones,4450
Redditch Borough Council,09/05/2018,298742,01272587596,2.75 ,0.55 ,E E Limited ****Airtime Only****,3656,Data Base & Hsg Performance,Telephones,4450
Redditch Borough Council,09/05/2018,298742,01272587596,7.00 ,1.40 ,E E Limited ****Airtime Only****,3656,Executive Director Lec,Telephones,4450
Redditch Borough Council,09/05/2018,298742,01272587596,2.75 ,0.55 ,E E Limited ****Airtime Only****,3656,Grounds Maint - Parks,Telephones,4450
Redditch Borough Council,09/05/2018,298742,01272587596,17.25 ,3.45 ,E E Limited ****Airtime Only****,3656,Head Of Community Services,Telephones,4450
Redditch Borough Council,09/05/2018,298742,01272587596,52.69 ,10.54 ,E E Limited ****Airtime Only****,3656,Head Of Leisure & Cultural Ser,Telephones,4450
Redditch Borough Council,09/05/2018,298742,01272587596,24.25 ,4.85 ,E E Limited ****Airtime Only****,3656,Head Of Planning & Regeneratio,Telephones,4450
Redditch Borough Council,09/05/2018,298742,01272587596,352.16 ,70.42 ,E E Limited ****Airtime Only****,3656,Housing Locality Service,Telephones,4450
Redditch Borough Council,09/05/2018,298742,01272587596,53.50 ,10.70 ,E E Limited ****Airtime Only****,3656,Hra Equipment & Adaptations,Telephones,4450
Redditch Borough Council,09/05/2018,298742,01272587596,27.50 ,5.50 ,E E Limited ****Airtime Only****,3656,Hra Interim Arrangements,Telephones,4450
Redditch Borough Council,09/05/2018,298742,01272587596,87.10 ,17.42 ,E E Limited ****Airtime Only****,3656,Hra Responsive Repairs,Telephones,4450
Redditch Borough Council,09/05/2018,298742,01272587596,7.00 ,1.40 ,E E Limited ****Airtime Only****,3656,Hra S/Charge Eligible Works,Telephones,4450
Redditch Borough Council,09/05/2018,298742,01272587596,72.78 ,14.56 ,E E Limited ****Airtime Only****,3656,Hra Voids Repairs,Telephones,4450
Redditch Borough Council,09/05/2018,298742,01272587596,37.15 ,7.42 ,E E Limited ****Airtime Only****,3656,Hsg Capital,Telephones,4450
Redditch Borough Council,09/05/2018,298742,01272587596,13.75 ,2.75 ,E E Limited ****Airtime Only****,3656,Hsg Options,Telephones,4450
Redditch Borough Council,09/05/2018,298742,01272587596,2.75 ,0.55 ,E E Limited ****Airtime Only****,3656,Human Resources,Telephones,4450
Redditch Borough Council,09/05/2018,298742,01272587596,38.00 ,7.60 ,E E Limited ****Airtime Only****,3656,Indoor Sports & Rec Facilities,Telephones,4450
Redditch Borough Council,09/05/2018,298742,01272587596,71.00 ,14.20 ,E E Limited ****Airtime Only****,3656,Lifeline - Support,Telephones,4450
Redditch Borough Council,09/05/2018,298742,01272587596,21.46 ,4.29 ,E E Limited ****Airtime Only****,3656,Local Taxation,Telephones,4450
Redditch Borough Council,09/05/2018,298742,01272587596,365.82 ,73.18 ,E E Limited ****Airtime Only****,3656,Members Services,Telephones,4450
Redditch Borough Council,09/05/2018,298742,01272587596,2.75 ,0.55 ,E E Limited ****Airtime Only****,3656,Museums And Gallaries,Telephones,4450
Redditch Borough Council,09/05/2018,298742,01272587596,16.75 ,3.35 ,E E Limited ****Airtime Only****,3656,O'Door Sports & Rec Facilities,Telephones,4450
Redditch Borough Council,09/05/2018,298742,01272587596,30.25 ,6.05 ,E E Limited ****Airtime Only****,3656,Planned,Telephones,4450
Redditch Borough Council,09/05/2018,298742,01272587596,24.25 ,4.85 ,E E Limited ****Airtime Only****,3656,Planning Policy,Telephones,4450
Redditch Borough Council,09/05/2018,298742,01272587596,8.25 ,1.65 ,E E Limited ****Airtime Only****,3656,Public Buildings,Telephones,4450
Redditch Borough Council,09/05/2018,298742,01272587596,543.74 ,108.75 ,E E Limited ****Airtime Only****,3656,Rbc Balance Sheet,Holding/Suspense/Contra Accs,9008
Redditch Borough Council,09/05/2018,298742,01272587596,10.25 ,2.05 ,E E Limited ****Airtime Only****,3656,Rbc Vehicle Workhop,Telephones,4450
Redditch Borough Council,09/05/2018,298742,01272587596,8.25 ,1.65 ,E E Limited ****Airtime Only****,3656,Redditch Place Teams General,Telephones,4450
Redditch Borough Council,09/05/2018,298742,01272587596,20.50 ,4.10 ,E E Limited ****Airtime Only****,3656,Safer & Stronger Communities,Telephones,4450
Redditch Borough Council,09/05/2018,298742,01272587596,44.75 ,8.95 ,E E Limited ****Airtime Only****,3656,Sports Dev & Com'Ty Recreation,Telephones,4450
Redditch Borough Council,09/05/2018,298742,01272587596,10.25 ,2.05 ,E E Limited ****Airtime Only****,3656,Sports Services Manager,Telephones,4450
Redditch Borough Council,09/05/2018,298742,01272587596,15.75 ,3.15 ,E E Limited ****Airtime Only****,3656,St Davids House,Telephones,4450
Redditch Borough Council,09/05/2018,298742,01272587596,3.55 ,0.71 ,E E Limited ****Airtime Only****,3656,Theatre Management,Telephones,4450
Redditch Borough Council,09/05/2018,298742,01272587596,9.75 ,1.95 ,E E Limited ****Airtime Only****,3656,Town Hall,Telephones,4450
Redditch Borough Council,09/05/2018,298742,01272587596,17.00 ,3.40 ,E E Limited ****Airtime Only****,3656,Welfare Support,Telephones,4450
Redditch Borough Council,09/05/2018,298742,01272587596,2.75 ,0.55 ,E E Limited ****Airtime Only****,3656,Winyates Neighbourhood Office,Telephones,4450
Redditch Borough Council,09/05/2018,298742,01272587596,2.75 ,0.55 ,E E Limited ****Airtime Only****,3656,Woodrow Neighbourhood Office,Telephones,4450
Redditch Borough Council,23/05/2018,299733,6259,"5,500.00 ","1,100.00 ",E T M (Agencies)  Ltd,1207,Theatre Management,Professional Fees,4350
Redditch Borough Council,30/05/2018,300089,6292,"3,130.85 ",626.17 ,E T M (Agencies)  Ltd,1207,Theatre Management,Professional Fees,4350
Redditch Borough Council,09/05/2018,299025,3128308,576.00 ,115.20 ,Enterprise Rent A Car Uk Limited Trading As,66713,Planned,Vehicle Hire,3800
Redditch Borough Council,09/05/2018,299026,3129235,617.14 ,123.43 ,Enterprise Rent A Car Uk Limited Trading As,66713,Planned,Vehicle Hire,3800
Redditch Borough Council,09/05/2018,299047,3128755,637.71 ,127.54 ,Enterprise Rent A Car Uk Limited Trading As,66713,Planned,Vehicle Hire,3800
Redditch Borough Council,23/05/2018,299639,3128757,556.44 ,111.29 ,Enterprise Rent A Car Uk Limited Trading As,66713,Concessionary Travel,Vehicle Hire,3800
Redditch Borough Council,23/05/2018,299726,3129241,642.86 ,128.57 ,Enterprise Rent A Car Uk Limited Trading As,66713,Concessionary Travel,Vehicle Hire,3800
Redditch Borough Council,02/05/2018,298001,0000271804,560.00 ,112.00 ,Envirovent Ltd,45,Hra Responsive Repairs,Building Maintenance,3100
Redditch Borough Council,23/05/2018,296942,0000262762,591.86 ,118.37 ,Envirovent Ltd,45,Hra Responsive Repairs,Materials,4170
Redditch Borough Council,23/05/2018,298611,0000264927,895.86 ,179.17 ,Envirovent Ltd,45,Hra Responsive Repairs,Building Maintenance,3100
Redditch Borough Council,23/05/2018,299819,0000268499,615.86 ,123.17 ,Envirovent Ltd,45,Hra Responsive Repairs,Building Maintenance,3100
Redditch Borough Council,23/05/2018,299820,0000268500,978.13 ,195.63 ,Envirovent Ltd,45,Hra Responsive Repairs,Building Maintenance,3100
Redditch Borough Council,30/05/2018,299822,0000268705,560.00 ,112.00 ,Envirovent Ltd,45,Hra Responsive Repairs,Building Maintenance,3100
Redditch Borough Council,30/05/2018,298244,ERFA14415,600.00 ,120.00 ,Erfa Limited,7403,Corporate Staff Costs,Training,3043
Redditch Borough Council,09/05/2018,298276,321996097,0.00 ,254.72 ,Eurocell Building Plastics Ltd,24,Crossgate Stocks,Stock Account (Cedar),1201
Redditch Borough Council,09/05/2018,298282,321987922,0.00 ,199.78 ,Eurocell Building Plastics Ltd,24,Crossgate Stocks,Stock Account (Cedar),1201
Redditch Borough Council,09/05/2018,298726,18101670,"1,440.00 ",288.00 ,Facultatieve Technologies,38,Crematoria,Furniture & Equipment R&M,4002
Redditch Borough Council,09/05/2018,299062,18101769,544.87 ,108.97 ,Facultatieve Technologies,38,Crematoria,Furniture & Equipment Purchase,4000
Redditch Borough Council,23/05/2018,299704,18101758,882.48 ,176.50 ,Facultatieve Technologies,38,Crematoria,Furniture & Equipment Purchase,4000
Redditch Borough Council,23/05/2018,299786,SI183473,0.00 ,104.92 ,Fleet (Line Markers) Ltd,67,Crossgate Stocks,Stock Account (Cedar),1201
Redditch Borough Council,16/05/2018,297865,14693/15787,"1,395.00 ",279.00 ,G S Adams,788,Street Lighting,Building Maintenance,3100
Redditch Borough Council,23/05/2018,297867,14692/15782,945.00 ,189.00 ,G S Adams,788,Street Lighting,Building Maintenance,3100
Redditch Borough Council,30/05/2018,300178,3417/01146209,0.00 ,113.94 ,Gibbs & Dandy Timber,5603,Crossgate Stocks,Stock Account (Cedar),1201
Redditch Borough Council,30/05/2018,296673,25930,540.00 ,108.00 ,Glide Media Ltd,66862,Museums And Gallaries,Furniture & Equipment Purchase,4000
Redditch Borough Council,09/05/2018,299013,159926,677.02 ,135.40 ,Global Plant Sales Ltd,6028,Redditch Place Teams General,R&M Of Vehicles,3700
Redditch Borough Council,09/05/2018,298631,8815432,"2,939.00 ",587.80 ,Grant Thornton Uk Llp,5364,Corporate Expenses,Professional Fees,4350
Redditch Borough Council,16/05/2018,299283,INV-26937,500.00 ,100.00 ,Grantham Coates Surveys Ltd,101855,Commercialism,Other Fees,4360
Redditch Borough Council,30/05/2018,298567,IN23031814,600.00 ,120.00 ,Greenway Energy Limited,61041,Hra Voids Repairs,Building Maintenance,3100
Redditch Borough Council,30/05/2018,298570,IN21031813,540.00 ,108.00 ,Greenway Energy Limited,61041,Hra Voids Repairs,Building Maintenance,3100
Redditch Borough Council,30/05/2018,300097,1655,536.00 ,0.00 ,Guy Wardle Training And Consultancy,34901,Homelessness Administration,Training,3043
Redditch Borough Council,16/05/2018,298696,203930,0.00 ,174.95 ,Hacketts Pipeline,2105,Crossgate Stocks,Stock Account (Cedar),1201
Redditch Borough Council,16/05/2018,298696,203930,-8.86 ,-1.77 ,Hacketts Pipeline,2105,Crossgate Stocks,Stock Variance,1203
Redditch Borough Council,23/05/2018,299779,110164921,0.00 ,"4,651.00 ",Hall Fuels,6959,Crossgate Stocks,Stock Account (Cedar),1201
Redditch Borough Council,16/05/2018,298723,18008,"1,731.00 ",346.20 ,Haven Systems Limited,637,Indoor Sports & Rec Facilities,Ict,4500
Redditch Borough Council,30/05/2018,300150,50129594,850.00 ,170.00 ,Haymarket Publishing Services Ltd,35238,Redditch Place Teams General,Advertising Publicity & Prom,4700
Redditch Borough Council,02/05/2018,298770,C/14823,500.00 ,100.00 ,Hb Info Ltd,1312,Welfare Support,Training,3043
Redditch Borough Council,16/05/2018,299383,8786,"20,235.00 ","4,047.00 ",Hill Interior Contracts Ltd,102411,Rbc Balance Sheet,Contract Payments,8131
Redditch Borough Council,23/05/2018,299382,8865,"36,657.22 ","7,331.44 ",Hill Interior Contracts Ltd,102411,Rbc Balance Sheet,Contract Payments,8131
Redditch Borough Council,16/05/2018,299299,52973,0.00 ,143.88 ,Hilltop Supplies Ltd,628,Crossgate Stocks,Stock Account (Cedar),1201
Redditch Borough Council,16/05/2018,299300,52972,0.00 ,129.20 ,Hilltop Supplies Ltd,628,Crossgate Stocks,Stock Account (Cedar),1201
Redditch Borough Council,16/05/2018,299301,52971,0.00 ,241.92 ,Hilltop Supplies Ltd,628,Crossgate Stocks,Stock Account (Cedar),1201
Redditch Borough Council,16/05/2018,299302,52970,0.00 ,347.82 ,Hilltop Supplies Ltd,628,Crossgate Stocks,Stock Account (Cedar),1201
Redditch Borough Council,16/05/2018,299304,52975,0.00 ,146.20 ,Hilltop Supplies Ltd,628,Crossgate Stocks,Stock Account (Cedar),1201
Redditch Borough Council,30/05/2018,298988,MSF/2018-1,750.00 ,0.00 ,Indigo Arts,324,Arts Development And Support,Other Fees,4360
Redditch Borough Council,02/05/2018,298430,AL56006,"1,625.00 ",325.00 ,Inform Cpi Ltd,7102,Cies,Other Fees,4360
Redditch Borough Council,02/05/2018,298432,AL56060,"1,000.00 ",200.00 ,Inform Cpi Ltd,7102,Cies,Other Fees,4360
Redditch Borough Council,30/05/2018,299019,A124761,547.00 ,109.40 ,Irrv,965,Local Taxation,Grants & Subscriptions,4650
Redditch Borough Council,30/05/2018,299019,A124761,548.00 ,109.60 ,Irrv,965,Welfare Support,Grants & Subscriptions,4650
Redditch Borough Council,30/05/2018,300155,700,"14,490.00 ",0.00 ,Iso Property Developments,3154,Rbc Balance Sheet,Disabled Facilities Grant,8701
Redditch Borough Council,23/05/2018,299622,16251,"2,495.49 ",499.10 ,J M S Vehicle Body Solutions Ltd,65893,Hra Responsive Repairs,Building Maintenance,3100
Redditch Borough Council,02/05/2018,298547,GI928563,0.00 ,130.00 ,Jack Hobbs Plumbing & Heating Suppl,306,Crossgate Stocks,Stock Account (Cedar),1201
Redditch Borough Council,09/05/2018,298989,GI929913,0.00 ,116.60 ,Jack Hobbs Plumbing & Heating Suppl,306,Crossgate Stocks,Stock Account (Cedar),1201
Redditch Borough Council,16/05/2018,299455,15,"2,432.50 ",0.00 ,Jayne Banton (Water Bambinos Swim Baby School,6790,Indoor Sports & Rec Facilities,Agency Staff,3020
Redditch Borough Council,16/05/2018,299323,0705/0102891,0.00 ,110.71 ,Jewson Ltd,300,Crossgate Stocks,Stock Account (Cedar),1201
Redditch Borough Council,02/05/2018,294261,4599,"4,077.99 ",815.60 ,Kelbec Civils Ltd,4794,Rbc Balance Sheet,Direct Payments,8132
Redditch Borough Council,02/05/2018,298413,4674,"2,801.86 ",560.37 ,Kelbec Civils Ltd,4794,Non Adopted H'Ways Inspection,Other Fees,4360
Redditch Borough Council,02/05/2018,298420,4675,"4,947.36 ",989.47 ,Kelbec Civils Ltd,4794,Non Adopted H'Ways Inspection,Other Fees,4360
Redditch Borough Council,02/05/2018,298562,4689,"1,734.76 ",346.95 ,Kelbec Civils Ltd,4794,Non Adopted H'Ways Inspection,Other Fees,4360
Redditch Borough Council,02/05/2018,298563,4666,"1,548.58 ",309.72 ,Kelbec Civils Ltd,4794,Non Adopted H'Ways Inspection,Other Fees,4360
Redditch Borough Council,02/05/2018,298573,4690,"1,360.26 ",272.05 ,Kelbec Civils Ltd,4794,Non Adopted H'Ways Inspection,Other Fees,4360
Redditch Borough Council,09/05/2018,299045,4702,"1,838.10 ",367.62 ,Kelbec Civils Ltd,4794,Rbc Balance Sheet,Contract Payments,8131
Redditch Borough Council,30/05/2018,299944,4716,"9,651.32 ","1,930.26 ",Kelbec Civils Ltd,4794,Rbc Balance Sheet,Contract Payments,8131
Redditch Borough Council,31/05/2018,299865,4722,"1,449.11 ",289.82 ,Kelbec Civils Ltd,4794,Rbc Balance Sheet,Contract Payments,8131
Redditch Borough Council,30/05/2018,298433,4278672,41.48 ,8.29 ,Kiddivouchers,5766,Corporate Staff Costs,Allowances,3014
Redditch Borough Council,30/05/2018,298433,4278672,"4,148.00 ",0.00 ,Kiddivouchers,5766,Rbc Balance Sheet,Payroll Deductions,1488
Redditch Borough Council,02/05/2018,298721,0001018166,"9,044.78 ","1,808.96 ",Kingdom,63839,Other Special Services,Cleaning & Supplies,3600
Redditch Borough Council,30/05/2018,300172,0001018840,"9,044.78 ","1,808.96 ",Kingdom,63839,Other Special Services,Cleaning & Supplies,3600
Redditch Borough Council,09/05/2018,299082,RENT IN ADVANCE,695.00 ,0.00 ,Lee Morris,102041,Homelessness Administration,Grants & Subscriptions,4650
Redditch Borough Council,16/05/2018,299282,00643507A,532.00 ,106.40 ,Lester Aldridge Llp,64839,Corporate Staff Costs,Employee Expenses,3011
Redditch Borough Council,02/05/2018,298594,61372,"3,550.00 ",710.00 ,Liftability Limited,272,Rbc Balance Sheet,Contract Payments,8131
Redditch Borough Council,09/05/2018,299083,CIS CREDIT ERRO,"1,065.00 ",0.00 ,Liftability Limited,272,Rbc Balance Sheet,Contract Payments,8131
Redditch Borough Council,09/05/2018,299095,6137,541.66 ,108.34 ,Live & Local Ltd,65956,Countryside Rec And M'Ment,Professional Fees,4350
Redditch Borough Council,02/05/2018,297572,SH143655,0.00 ,149.40 ,Lloyd Worrall (Classic),5646,Crossgate Stocks,Stock Account (Cedar),1201
Redditch Borough Council,02/05/2018,297578,SH143735,0.00 ,120.10 ,Lloyd Worrall (Classic),5646,Crossgate Stocks,Stock Account (Cedar),1201
Redditch Borough Council,30/05/2018,298724,SH144206,0.00 ,113.43 ,Lloyd Worrall (Classic),5646,Crossgate Stocks,Stock Account (Cedar),1201
Redditch Borough Council,31/05/2018,298930,SH144424,0.00 ,100.00 ,Lloyd Worrall (Classic),5646,Crossgate Stocks,Stock Account (Cedar),1201
Redditch Borough Council,16/05/2018,299221,40157991,"7,948.26 ","1,589.65 ",Local Government Association,1978,Corporate Subscriptions,Grants & Subscriptions,4650
Redditch Borough Council,23/05/2018,299680,008,"2,000.00 ",0.00 ,Lpb Consulting Ltd,102259,Head Of Leisure & Cultural Ser,Professional Fees,4350
Redditch Borough Council,16/05/2018,297589,22461,"5,815.00 ",202.00 ,M3 Housing,67116,Hra Responsive Repairs,Stationery & General Office,4304
Redditch Borough Council,02/05/2018,298587,56617059,620.38 ,124.08 ,Magnet Contract Kitchen Solutions,66692,Hra Voids Repairs,Materials,4170
Redditch Borough Council,02/05/2018,298593,56632737,509.27 ,101.85 ,Magnet Contract Kitchen Solutions,66692,Hra Voids Repairs,Materials,4170
Redditch Borough Council,02/05/2018,298596,56625308,779.60 ,155.92 ,Magnet Contract Kitchen Solutions,66692,Hra Voids Repairs,Materials,4170
Redditch Borough Council,23/05/2018,297623,56604427,610.96 ,122.19 ,Magnet Contract Kitchen Solutions,66692,Hra Voids Repairs,Materials,4170
Redditch Borough Council,23/05/2018,298607,56635772,560.70 ,112.14 ,Magnet Contract Kitchen Solutions,66692,Hra Voids Repairs,Materials,4170
Redditch Borough Council,31/05/2018,299872,56701289,593.52 ,118.70 ,Magnet Contract Kitchen Solutions,66692,Hra Voids Repairs,Materials,4170
Redditch Borough Council,31/05/2018,299873,56701346,554.36 ,110.87 ,Magnet Contract Kitchen Solutions,66692,Hra Voids Repairs,Materials,4170
Redditch Borough Council,09/05/2018,298268,IN23640,"1,885.72 ",377.15 ,Matrix Scm Ltd,5367,Community Development,Agency Staff,3020
Redditch Borough Council,09/05/2018,298268,IN23640,162.73 ,32.55 ,Matrix Scm Ltd,5367,Data Base & Hsg Performance,Agency Staff,3020
Redditch Borough Council,09/05/2018,298268,IN23640,"2,619.01 ",523.80 ,Matrix Scm Ltd,5367,Household Waste Collection,Agency Staff,3020
Redditch Borough Council,09/05/2018,298268,IN23640,"3,465.22 ",693.08 ,Matrix Scm Ltd,5367,Housing Locality Service,Agency Staff,3020
Redditch Borough Council,09/05/2018,298268,IN23640,"3,727.09 ",745.45 ,Matrix Scm Ltd,5367,Hra Responsive Repairs,Agency Staff,3020
Redditch Borough Council,09/05/2018,298268,IN23640,"1,515.23 ",303.07 ,Matrix Scm Ltd,5367,Hra Voids Repairs,Agency Staff,3020
Redditch Borough Council,09/05/2018,298268,IN23640,"3,703.53 ",740.77 ,Matrix Scm Ltd,5367,Hsg Options,Agency Staff,3020
Redditch Borough Council,09/05/2018,298268,IN23640,"1,649.68 ",329.93 ,Matrix Scm Ltd,5367,Local Taxation,Agency Staff,3020
Redditch Borough Council,09/05/2018,298268,IN23640,"3,912.26 ",782.45 ,Matrix Scm Ltd,5367,Planned,Agency Staff,3020
Redditch Borough Council,09/05/2018,298268,IN23640,79.66 ,15.93 ,Matrix Scm Ltd,5367,St Davids House,Agency Staff,3020
Redditch Borough Council,09/05/2018,298268,IN23640,515.01 ,103.01 ,Matrix Scm Ltd,5367,Welfare Support,Agency Staff,3020
Redditch Borough Council,09/05/2018,298572,IN23725,787.33 ,157.47 ,Matrix Scm Ltd,5367,Community Development,Agency Staff,3020
Redditch Borough Council,09/05/2018,298572,IN23725,492.84 ,98.57 ,Matrix Scm Ltd,5367,Countryside Rec And M'Ment,Agency Staff,3020
Redditch Borough Council,09/05/2018,298572,IN23725,275.93 ,55.19 ,Matrix Scm Ltd,5367,Data Base & Hsg Performance,Agency Staff,3020
Redditch Borough Council,09/05/2018,298572,IN23725,"2,296.96 ",459.39 ,Matrix Scm Ltd,5367,Household Waste Collection,Agency Staff,3020
Redditch Borough Council,09/05/2018,298572,IN23725,"2,115.68 ",423.15 ,Matrix Scm Ltd,5367,Housing Locality Service,Agency Staff,3020
Redditch Borough Council,09/05/2018,298572,IN23725,"1,194.36 ",238.87 ,Matrix Scm Ltd,5367,Hra Responsive Repairs,Agency Staff,3020
Redditch Borough Council,09/05/2018,298572,IN23725,"2,396.16 ",479.27 ,Matrix Scm Ltd,5367,Hsg Options,Agency Staff,3020
Redditch Borough Council,09/05/2018,298572,IN23725,"1,950.66 ",390.14 ,Matrix Scm Ltd,5367,Local Taxation,Agency Staff,3020
Redditch Borough Council,09/05/2018,298572,IN23725,"3,086.41 ",617.27 ,Matrix Scm Ltd,5367,Planned,Agency Staff,3020
Redditch Borough Council,09/05/2018,298572,IN23725,79.66 ,15.93 ,Matrix Scm Ltd,5367,St Davids House,Agency Staff,3020
Redditch Borough Council,09/05/2018,298572,IN23725,267.66 ,53.54 ,Matrix Scm Ltd,5367,Welfare Support,Agency Staff,3020
Redditch Borough Council,09/05/2018,299003,IN23812,"1,284.67 ",256.94 ,Matrix Scm Ltd,5367,Community Development,Agency Staff,3020
Redditch Borough Council,09/05/2018,299003,IN23812,261.78 ,52.36 ,Matrix Scm Ltd,5367,Data Base & Hsg Performance,Agency Staff,3020
Redditch Borough Council,09/05/2018,299003,IN23812,"2,296.96 ",459.39 ,Matrix Scm Ltd,5367,Household Waste Collection,Agency Staff,3020
Redditch Borough Council,09/05/2018,299003,IN23812,"2,214.52 ",442.90 ,Matrix Scm Ltd,5367,Housing Locality Service,Agency Staff,3020
Redditch Borough Council,09/05/2018,299003,IN23812,"4,134.30 ",826.89 ,Matrix Scm Ltd,5367,Hra Responsive Repairs,Agency Staff,3020
Redditch Borough Council,09/05/2018,299003,IN23812,445.13 ,89.04 ,Matrix Scm Ltd,5367,Hra Voids Repairs,Agency Staff,3020
Redditch Borough Council,09/05/2018,299003,IN23812,"2,406.52 ",481.30 ,Matrix Scm Ltd,5367,Hsg Options,Agency Staff,3020
Redditch Borough Council,09/05/2018,299003,IN23812,794.76 ,158.94 ,Matrix Scm Ltd,5367,Local Taxation,Agency Staff,3020
Redditch Borough Council,09/05/2018,299003,IN23812,"7,570.48 ","1,514.13 ",Matrix Scm Ltd,5367,Planned,Agency Staff,3020
Redditch Borough Council,09/05/2018,299003,IN23812,79.66 ,15.93 ,Matrix Scm Ltd,5367,St Davids House,Agency Staff,3020
Redditch Borough Council,09/05/2018,299003,IN23812,498.09 ,99.62 ,Matrix Scm Ltd,5367,Welfare Support,Agency Staff,3020
Redditch Borough Council,23/05/2018,299263,IN23897,"1,201.33 ",240.27 ,Matrix Scm Ltd,5367,Community Development,Agency Staff,3020
Redditch Borough Council,23/05/2018,299263,IN23897,205.18 ,41.04 ,Matrix Scm Ltd,5367,Data Base & Hsg Performance,Agency Staff,3020
Redditch Borough Council,23/05/2018,299263,IN23897,"2,949.78 ",589.96 ,Matrix Scm Ltd,5367,Household Waste Collection,Agency Staff,3020
Redditch Borough Council,23/05/2018,299263,IN23897,"4,511.17 ",902.25 ,Matrix Scm Ltd,5367,Housing Locality Service,Agency Staff,3020
Redditch Borough Council,23/05/2018,299263,IN23897,"1,700.93 ",340.20 ,Matrix Scm Ltd,5367,Hra Responsive Repairs,Agency Staff,3020
Redditch Borough Council,23/05/2018,299263,IN23897,"5,922.33 ","1,184.47 ",Matrix Scm Ltd,5367,Hsg Options,Agency Staff,3020
Redditch Borough Council,23/05/2018,299263,IN23897,"1,424.09 ",284.82 ,Matrix Scm Ltd,5367,Local Taxation,Agency Staff,3020
Redditch Borough Council,23/05/2018,299263,IN23897,"4,044.31 ",808.86 ,Matrix Scm Ltd,5367,Planned,Agency Staff,3020
Redditch Borough Council,23/05/2018,299263,IN23897,210.53 ,42.10 ,Matrix Scm Ltd,5367,St Davids House,Agency Staff,3020
Redditch Borough Council,23/05/2018,299263,IN23897,751.29 ,150.26 ,Matrix Scm Ltd,5367,Welfare Support,Agency Staff,3020
Redditch Borough Council,30/05/2018,299654,IN23985,631.33 ,126.27 ,Matrix Scm Ltd,5367,Community Development,Agency Staff,3020
Redditch Borough Council,30/05/2018,299654,IN23985,258.24 ,51.65 ,Matrix Scm Ltd,5367,Data Base & Hsg Performance,Agency Staff,3020
Redditch Borough Council,30/05/2018,299654,IN23985,"1,920.57 ",384.11 ,Matrix Scm Ltd,5367,Household Waste Collection,Agency Staff,3020
Redditch Borough Council,30/05/2018,299654,IN23985,"2,665.93 ",533.20 ,Matrix Scm Ltd,5367,Housing Locality Service,Agency Staff,3020
Redditch Borough Council,30/05/2018,299654,IN23985,"2,642.69 ",528.55 ,Matrix Scm Ltd,5367,Hsg Options,Agency Staff,3020
Redditch Borough Council,30/05/2018,299654,IN23985,902.16 ,180.44 ,Matrix Scm Ltd,5367,Local Taxation,Agency Staff,3020
Redditch Borough Council,30/05/2018,299654,IN23985,"3,572.86 ",714.58 ,Matrix Scm Ltd,5367,Planned,Agency Staff,3020
Redditch Borough Council,31/05/2018,300115,CDOWALLPALACEOO,600.00 ,0.00 ,Mcdowall Art And Design,102752,Theatre Management,Agency Staff,3020
Redditch Borough Council,30/05/2018,300108,118408,"1,066.45 ",213.29 ,Mercia Waste Management,610,Hra Voids Repairs,Refuse Collection/Waste Dispos,3602
Redditch Borough Council,30/05/2018,300204,118464,"2,423.75 ",484.75 ,Mercia Waste Management,610,Hra Voids Repairs,Refuse Collection/Waste Dispos,3602
Redditch Borough Council,02/05/2018,298347,15468,"2,600.00 ",520.00 ,Midland Forestry Ltd,36103,Community Parks & Open Spaces,Grounds Maintenance,3200
Redditch Borough Council,31/05/2018,300092,360841-1,0.00 ,147.60 ,Morris Mica Hardware,595,Crossgate Stocks,Stock Account (Cedar),1201
Redditch Borough Council,02/05/2018,298360,589,684.00 ,0.00 ,Redacted - Personal Data Protection,54700,Crematoria,Professional Fees,4350
Redditch Borough Council,09/05/2018,299059,590,646.00 ,0.00 ,Redacted - Personal Data Protection,54700,Crematoria,Professional Fees,4350
Redditch Borough Council,02/05/2018,298628,40,652.50 ,0.00 ,Redacted - Personal Data Protection,64131,Safer & Stronger Communities,Other Fees,4360
Redditch Borough Council,09/05/2018,298899,0190/00049039,0.00 ,258.41 ,N & C Building Products Ltd,1160,Crossgate Stocks,Stock Account (Cedar),1201
Redditch Borough Council,30/05/2018,300182,0190/00049764,0.00 ,671.87 ,N & C Building Products Ltd,1160,Crossgate Stocks,Stock Account (Cedar),1201
Redditch Borough Council,02/05/2018,298382,21859626,784.00 ,156.80 ,Newsquest (Midlands Wales & South West) Ltd,584,Community Centres,Employee Expenses,3011
Redditch Borough Council,02/05/2018,298241,30581,"1,741.65 ",348.33 ,Niyaa People Limited,7093,Planned,Agency Staff,3020
Redditch Borough Council,02/05/2018,298242,30577,617.25 ,123.45 ,Niyaa People Limited,7093,Planned,Agency Staff,3020
Redditch Borough Council,02/05/2018,298259,30683,898.31 ,179.66 ,Niyaa People Limited,7093,Planned,Agency Staff,3020
Redditch Borough Council,02/05/2018,298557,30709,"1,741.65 ",348.33 ,Niyaa People Limited,7093,Planned,Agency Staff,3020
Redditch Borough Council,02/05/2018,298558,30705,563.94 ,112.79 ,Niyaa People Limited,7093,Planned,Agency Staff,3020
Redditch Borough Council,02/05/2018,298559,30706,931.76 ,186.35 ,Niyaa People Limited,7093,Planned,Agency Staff,3020
Redditch Borough Council,09/05/2018,298788,30879,925.42 ,185.08 ,Niyaa People Limited,7093,Planned,Agency Staff,3020
Redditch Borough Council,09/05/2018,298789,30880,980.56 ,196.11 ,Niyaa People Limited,7093,Planned,Agency Staff,3020
Redditch Borough Council,09/05/2018,298790,30882,"1,741.65 ",348.33 ,Niyaa People Limited,7093,Planned,Agency Staff,3020
Redditch Borough Council,09/05/2018,298791,30885,"1,917.27 ",383.45 ,Niyaa People Limited,7093,Planned,Agency Staff,3020
Redditch Borough Council,16/05/2018,299227,30993,974.95 ,194.99 ,Niyaa People Limited,7093,Planned,Agency Staff,3020
Redditch Borough Council,16/05/2018,299228,30988,"1,775.80 ",355.16 ,Niyaa People Limited,7093,Planned,Agency Staff,3020
Redditch Borough Council,16/05/2018,299229,30984,878.45 ,175.69 ,Niyaa People Limited,7093,Planned,Agency Staff,3020
Redditch Borough Council,16/05/2018,299230,30983,753.73 ,150.75 ,Niyaa People Limited,7093,Planned,Agency Staff,3020
Redditch Borough Council,30/05/2018,299669,31131,629.01 ,125.80 ,Niyaa People Limited,7093,Planned,Agency Staff,3020
Redditch Borough Council,30/05/2018,299670,31132,595.56 ,119.11 ,Niyaa People Limited,7093,Planned,Agency Staff,3020
Redditch Borough Council,30/05/2018,299671,31140,854.96 ,170.99 ,Niyaa People Limited,7093,Planned,Agency Staff,3020
Redditch Borough Council,30/05/2018,299858,31135,"1,553.83 ",310.77 ,Niyaa People Limited,7093,Planned,Agency Staff,3020
Redditch Borough Council,30/05/2018,300055,31284,"1,124.95 ",224.99 ,Niyaa People Limited,7093,Planned,Agency Staff,3020
Redditch Borough Council,30/05/2018,300056,31279,"1,741.65 ",348.33 ,Niyaa People Limited,7093,Planned,Agency Staff,3020
Redditch Borough Council,30/05/2018,300057,31274,683.24 ,136.65 ,Niyaa People Limited,7093,Planned,Agency Staff,3020
Redditch Borough Council,30/05/2018,300058,31275,910.07 ,182.01 ,Niyaa People Limited,7093,Planned,Agency Staff,3020
Redditch Borough Council,31/05/2018,300219,931415644,"1,690.43 ",338.09 ,Niyaa People Limited,7093,Planned,Agency Staff,3020
Redditch Borough Council,31/05/2018,300220,931415644,779.96 ,155.99 ,Niyaa People Limited,7093,Planned,Agency Staff,3020
Redditch Borough Council,31/05/2018,300221,931415644,656.12 ,131.22 ,Niyaa People Limited,7093,Planned,Agency Staff,3020
Redditch Borough Council,31/05/2018,300222,931415644,968.80 ,193.76 ,Niyaa People Limited,7093,Planned,Agency Staff,3020
Redditch Borough Council,16/05/2018,299093,534096,0.00 ,102.44 ,Nobisco Ltd,6126,Crossgate Stocks,Stock Account (Cedar),1201
Redditch Borough Council,16/05/2018,298658,18040809,"5,888.09 ","1,177.62 ",Novus Property Solutions Ltd,67211,Hra Voids Repairs,Building Maintenance,3100
Redditch Borough Council,16/05/2018,298663,M95262BP,"13,160.34 ","2,632.07 ",Novus Property Solutions Ltd,67211,Hra Responsive Repairs,Building Maintenance,3100
Redditch Borough Council,16/05/2018,299329,18041050,"15,126.64 ","3,025.33 ",Novus Property Solutions Ltd,67211,Hra Voids Repairs,Building Maintenance,3100
Redditch Borough Council,02/05/2018,298574,00162,"8,710.00 ","1,742.00 ",Nw Environmental Ltd,66420,Community Parks & Open Spaces,Professional Fees,4350
Redditch Borough Council,23/05/2018,297722,OE3012,"40,698.37 ","8,139.67 ",Orton Electrical Services Limited,64970,Rbc Balance Sheet,Contract Payments,8131
Redditch Borough Council,23/05/2018,298271,QE3091/EJ8006,501.75 ,100.35 ,Orton Electrical Services Limited,64970,Hra S/Charge Eligible Works,Building Maintenance,3100
Redditch Borough Council,23/05/2018,298385,OE3Q56,"2,260.88 ",452.18 ,Orton Electrical Services Limited,64970,Hra Responsive Repairs,Building Maintenance,3100
Redditch Borough Council,23/05/2018,298386,OE3Q15,"1,551.77 ",310.35 ,Orton Electrical Services Limited,64970,Hra Responsive Repairs,Building Maintenance,3100
Redditch Borough Council,23/05/2018,298387,OE2783,"2,360.69 ",472.14 ,Orton Electrical Services Limited,64970,Hra Responsive Repairs,Building Maintenance,3100
Redditch Borough Council,23/05/2018,298388,OE2781,"1,250.44 ",250.09 ,Orton Electrical Services Limited,64970,Hra Responsive Repairs,Building Maintenance,3100
Redditch Borough Council,23/05/2018,298538,OE3103,"27,006.27 ","5,401.25 ",Orton Electrical Services Limited,64970,Rbc Balance Sheet,Contract Payments,8131
Redditch Borough Council,23/05/2018,298633,R008,"2,804.90 ",560.98 ,Orton Electrical Services Limited,64970,Hra Responsive Repairs,Building Maintenance,3100
Redditch Borough Council,23/05/2018,298636,R008,"2,044.85 ",408.97 ,Orton Electrical Services Limited,64970,Hra Responsive Repairs,Building Maintenance,3100
Redditch Borough Council,23/05/2018,298637,R008,"2,405.90 ",481.18 ,Orton Electrical Services Limited,64970,Hra Responsive Repairs,Building Maintenance,3100
Redditch Borough Council,23/05/2018,298638,R008,"1,781.83 ",356.37 ,Orton Electrical Services Limited,64970,Hra Responsive Repairs,Building Maintenance,3100
Redditch Borough Council,23/05/2018,298639,R008,"1,369.10 ",273.82 ,Orton Electrical Services Limited,64970,Hra Responsive Repairs,Building Maintenance,3100
Redditch Borough Council,23/05/2018,298640,R008,"1,705.33 ",341.07 ,Orton Electrical Services Limited,64970,Hra Responsive Repairs,Building Maintenance,3100
Redditch Borough Council,23/05/2018,298664,R008,"1,942.02 ",388.40 ,Orton Electrical Services Limited,64970,Hra Responsive Repairs,Building Maintenance,3100
Redditch Borough Council,23/05/2018,299257,OE3193,"2,179.51 ",435.90 ,Orton Electrical Services Limited,64970,Hra Responsive Repairs,Building Maintenance,3100
Redditch Borough Council,23/05/2018,299258,OE3196,"4,572.60 ",914.52 ,Orton Electrical Services Limited,64970,Hra Responsive Repairs,Building Maintenance,3100
Redditch Borough Council,23/05/2018,299259,OE3203,"3,455.61 ",691.12 ,Orton Electrical Services Limited,64970,Hra Responsive Repairs,Building Maintenance,3100
Redditch Borough Council,23/05/2018,299260,OE3204,"1,365.11 ",273.02 ,Orton Electrical Services Limited,64970,Hra Responsive Repairs,Building Maintenance,3100
Redditch Borough Council,23/05/2018,299261,OE3192,"3,758.35 ",751.67 ,Orton Electrical Services Limited,64970,Hra S/Charge Eligible Works,Building Maintenance,3100
Redditch Borough Council,23/05/2018,299364,OE3194,"1,388.70 ",277.74 ,Orton Electrical Services Limited,64970,Hra Interim Arrangements,Professional Fees,4350
Redditch Borough Council,23/05/2018,299365,OE3195,"1,733.98 ",346.80 ,Orton Electrical Services Limited,64970,Hra Interim Arrangements,Professional Fees,4350
Redditch Borough Council,23/05/2018,299366,OE3197,"2,424.18 ",484.84 ,Orton Electrical Services Limited,64970,Hra Interim Arrangements,Professional Fees,4350
Redditch Borough Council,23/05/2018,299368,OE3198,"2,304.05 ",460.81 ,Orton Electrical Services Limited,64970,Hra Interim Arrangements,Professional Fees,4350
Redditch Borough Council,23/05/2018,297707,OM1879,"69,886.06 ","13,977.21 ",Orton Mechanical Services  Limited,64969,Rbc Balance Sheet,Contract Payments,8131
Redditch Borough Council,02/05/2018,298266,252P290763,515.16 ,103.03 ,Pertemps Recruitment Partnership Ltd,557,Hra Voids Repairs,Agency Staff,3020
Redditch Borough Council,09/05/2018,298678,252P291304,529.47 ,105.89 ,Pertemps Recruitment Partnership Ltd,557,Hra Voids Repairs,Agency Staff,3020
Redditch Borough Council,16/05/2018,298920,252P291548,529.47 ,105.89 ,Pertemps Recruitment Partnership Ltd,557,Hra Voids Repairs,Agency Staff,3020
Redditch Borough Council,09/05/2018,298965,92,660.00 ,0.00 ,Redacted - Personal Data Protection,5257,Indoor Sports & Rec Facilities,Agency Staff,3020
Redditch Borough Council,09/05/2018,298967,93(APRI2018),570.00 ,0.00 ,Redacted - Personal Data Protection,5257,Indoor Sports & Rec Facilities,Agency Staff,3020
Redditch Borough Council,09/05/2018,298932,04/18,500.00 ,0.00 ,Redacted - Personal Data Protection,7036,Indoor Sports & Rec Facilities,Agency Staff,3020
Redditch Borough Council,16/05/2018,299297,76802184,"102,750.00 ","20,550.00 ",Place Partnership Limited,61388,Place Partnership Pass Through,Building Maintenance,3100
Redditch Borough Council,16/05/2018,299298,76802178,"76,500.00 ","15,300.00 ",Place Partnership Limited,61388,Place Partnership Core,Professional Fees,4350
Redditch Borough Council,09/05/2018,298752,13784,555.50 ,111.10 ,Practical Care Products Ltd,391,Hra Equipment & Adaptations,Materials,4170
Redditch Borough Council,16/05/2018,299110,13793,0.00 ,101.20 ,Practical Care Products Ltd,391,Crossgate Stocks,Stock Account (Cedar),1201
Redditch Borough Council,23/05/2018,299610,13804,525.50 ,105.10 ,Practical Care Products Ltd,391,Hra Equipment & Adaptations,Materials,4170
Redditch Borough Council,23/05/2018,299611,13803,555.50 ,111.10 ,Practical Care Products Ltd,391,Hra Equipment & Adaptations,Materials,4170
Redditch Borough Council,02/05/2018,298679,12450,"5,528.70 ","1,105.74 ",Professional Data Management Services Ltd,63116,Env Services Mgmt & Support,Ict,4500
Redditch Borough Council,30/05/2018,300073,12491,"3,000.00 ",600.00 ,Professional Data Management Services Ltd,63116,Env Services Mgmt & Support,Ict,4500
Redditch Borough Council,30/05/2018,300098,12529,"6,048.00 ","1,209.60 ",Professional Data Management Services Ltd,63116,Policy And Management,Ict,4500
Redditch Borough Council,09/05/2018,298917,13-20,740.67 ,0.00 ,R D Rogers Butchers,373,St Davids Hse Luncheon Club,Catering Provisions,4200
Redditch Borough Council,23/05/2018,298907,1064688,651.30 ,130.26 ,Redditch Skip Hire Ltd,984,Redditch Place Teams General,Refuse Collection/Waste Dispos,3602
Redditch Borough Council,30/05/2018,295917,1064566,797.95 ,159.59 ,Redditch Skip Hire Ltd,984,Hra Responsive Repairs,Refuse Collection/Waste Dispos,3602
Redditch Borough Council,30/05/2018,295917,1064566,797.95 ,159.59 ,Redditch Skip Hire Ltd,984,Hra Voids Repairs,Refuse Collection/Waste Dispos,3602
Redditch Borough Council,30/05/2018,297936,1064623,779.95 ,155.99 ,Redditch Skip Hire Ltd,984,Hra Responsive Repairs,Refuse Collection/Waste Dispos,3602
Redditch Borough Council,30/05/2018,297936,1064623,779.95 ,155.99 ,Redditch Skip Hire Ltd,984,Hra Voids Repairs,Refuse Collection/Waste Dispos,3602
Redditch Borough Council,30/05/2018,298906,1064687,969.22 ,193.84 ,Redditch Skip Hire Ltd,984,Hra Responsive Repairs,Refuse Collection/Waste Dispos,3602
Redditch Borough Council,30/05/2018,298906,1064687,969.23 ,193.85 ,Redditch Skip Hire Ltd,984,Hra Voids Repairs,Refuse Collection/Waste Dispos,3602
Redditch Borough Council,02/05/2018,298783,2018/19,500.00 ,0.00 ,Redditch Spartans Cricket Club,102591,Grants To Vol Sector,Grants & Subscriptions,4650
Redditch Borough Council,30/05/2018,298704,00055,"3,387.50 ",0.00 ,Redditch Wheels Project,5815,Community Centres,Other Fees,4360
Redditch Borough Council,09/05/2018,298981,203,"17,565.66 ","3,513.13 ",Resources Consultancy Ltd,60829,Finance,Professional Fees,4350
Redditch Borough Council,16/05/2018,299356,MISC1874,"2,695.27 ",539.05 ,Ringway Infastructure Services,2791,Planning Policy,Other Fees,4360
Redditch Borough Council,09/05/2018,297497,26032018,"1,055.24 ",211.05 ,Scarab Sweepers Limited,342,Sweepers & Hiabs,R&M Of Vehicles,3700
Redditch Borough Council,02/05/2018,298541,INV168518,573.00 ,114.60 ,Servicom (High Tech) Ltd,338,Indoor Sports & Rec Facilities,Furniture & Equipment Purchase,4000
Redditch Borough Council,02/05/2018,298609,ELOEXP24C018I,"5,707.68 ","1,141.54 ",Showdown Music Ltd,4695,Theatre Management,Professional Fees,4350
Redditch Borough Council,02/05/2018,298715,23RDAPRIL2018,"7,500.00 ",0.00 ,Signs Of Hope Community Interest Company,7101,Rent-Rebates,Other Fees,4360
Redditch Borough Council,23/05/2018,296380,464657,0.00 ,177.05 ,Smi Group,64065,Crossgate Stocks,Stock Account (Cedar),1201
Redditch Borough Council,09/05/2018,297380,53794,"1,690.50 ",338.10 ,Sos Group Services Ltd,5054,Response Maintenance,Grounds Maintenance,3200
Redditch Borough Council,30/05/2018,300154,647-16-01,720.00 ,0.00 ,Spector Design,101498,Rbc Balance Sheet,Disabled Facilities Grant,8701
Redditch Borough Council,09/05/2018,299009,524079,"2,586.27 ",517.26 ,Sportsafe Uk Ltd,7364,Indoor Sports & Rec Facilities,Furniture & Equipment R&M,4002
Redditch Borough Council,09/05/2018,297914,4RE023,0.00 ,"2,579.20 ",Ssi Schaefer Ltd,2278,Crossgate Stocks,Stock Account (Cedar),1201
Redditch Borough Council,09/05/2018,298416,PO,648.75 ,0.00 ,St3 Consulting Limited,7040,Policy And Management,Professional Fees,4350
Redditch Borough Council,09/05/2018,299087,S085082359,"2,984.00 ",0.00 ,Stannah Lift Services Ltd,533,Rbc Balance Sheet,Disabled Facilities Grant,8701
Redditch Borough Council,30/05/2018,300153,S085078359,"2,696.00 ",0.00 ,Stannah Lift Services Ltd,533,Rbc Balance Sheet,Disabled Facilities Grant,8701
Redditch Borough Council,23/05/2018,299906,BALANCE,"3,159.66 ",0.00 ,Sue Latham School Of Dance,2657,Theatre Management,Other Fees,4360
Redditch Borough Council,23/05/2018,299316,21459,999.20 ,167.84 ,Teleshore,6419,Crematoria,Materials,4170
Redditch Borough Council,31/05/2018,300142,R18-16,"3,203.41 ",640.68 ,The Reunion Group,5868,Theatre Management,Professional Fees,4350
Redditch Borough Council,23/05/2018,299790,19956,"6,952.56 ","1,390.51 ",The Yaboo Company Limited,2326,Crematoria,Professional Fees,4350
Redditch Borough Council,23/05/2018,299903,BALANCE,"2,883.80 ",0.00 ,Timeless Theatre Productions,5056,Theatre Management,Other Fees,4360
Redditch Borough Council,16/05/2018,298980,105038,787.84 ,157.57 ,Total Integrated Solutions Limited,64246,Stores Oncost Account,Furniture & Equipment R&M,4002
Redditch Borough Council,16/05/2018,299394,3IN/10317882,879.40 ,175.88 ,Tunstall  Limited,459,Lifeline - Support,Furniture & Equipment Purchase,4000
Redditch Borough Council,02/05/2018,298733,INV-0160,560.00 ,0.00 ,Uk Dodgball Association,62185,Sports Dev & Com'Ty Recreation,Training,3043
Redditch Borough Council,23/05/2018,299917,DED MAY 18,"1,332.70 ",0.00 ,Unison West Midlands Regional Centre,1510,Rbc Balance Sheet,Payroll Deductions,1488
Redditch Borough Council,30/05/2018,299591,INV002094,"12,291.79 ","2,458.36 ",V4 Services Ltd,67076,Head Of Leisure & Cultural Ser,Professional Fees,4350
Redditch Borough Council,02/05/2018,298253,3398216,836.00 ,167.20 ,Venn Group,446,Welfare Support,Agency Staff,3020
Redditch Borough Council,02/05/2018,298254,3393296,880.00 ,176.00 ,Venn Group,446,Welfare Support,Agency Staff,3020
Redditch Borough Council,02/05/2018,298255,3392920,858.00 ,171.60 ,Venn Group,446,Welfare Support,Agency Staff,3020
Redditch Borough Council,02/05/2018,298256,3395699,847.00 ,169.40 ,Venn Group,446,Welfare Support,Agency Staff,3020
Redditch Borough Council,02/05/2018,298257,3400526,836.00 ,167.20 ,Venn Group,446,Welfare Support,Agency Staff,3020
Redditch Borough Council,02/05/2018,298289,3402885,880.00 ,176.00 ,Venn Group,446,Welfare Support,Agency Staff,3020
Redditch Borough Council,16/05/2018,299291,20316,844.00 ,0.00 ,Vernon Print & Design,1455,Museums And Gallaries,Photocopying  & Print,4300
Redditch Borough Council,30/05/2018,298370,20165,580.00 ,0.00 ,Vernon Print & Design,1455,Theatre Management,Photocopying  & Print,4300
Redditch Borough Council,31/05/2018,298369,20164,"2,730.00 ",0.00 ,Vernon Print & Design,1455,Theatre Management,Photocopying  & Print,4300
Redditch Borough Council,02/05/2018,298718,10018,"3,850.00 ",770.00 ,West Midlands Employers,422,Civic Expenses,Grants & Subscriptions,4650
Redditch Borough Council,30/05/2018,298705,17180004,"1,175.75 ",0.00 ,Whats Your Point,1563,Community Centres,Other Fees,4360
Redditch Borough Council,23/05/2018,299707,IN17PR18002495,"5,297.56 ","1,059.51 ",Whistl Uk Ltd,1546,Theatre Management,Other Fees,4360
Redditch Borough Council,09/05/2018,299038,0000800907,"1,710.76 ",342.15 ,Wicksteed Leisure Ltd,415,O'Door Sports & Rec Facilities,Furniture & Equipment R&M,4002
Redditch Borough Council,02/05/2018,298743,360509,"4,140.75 ",0.00 ,Woodland Property Services Ltd,62339,Rbc Balance Sheet,Disabled Facilities Grant,8701
Redditch Borough Council,30/05/2018,298258,8040050795,"13,636.00 ",0.00 ,Worcester City Council,2238,Audit Services,Other Local Authorities,5009
Redditch Borough Council,02/05/2018,298623,IIM00050203,"1,340.00 ",268.00 ,Worcestershire County Council,195,Land Charges,Other Fees,4360
Redditch Borough Council,09/05/2018,298071,IN00051223,677.57 ,0.00 ,Worcestershire County Council,195,Planning Policy,Training,3043
Redditch Borough Council,16/05/2018,296870,IN00039696,404.00 ,28.00 ,Worcestershire County Council,195,Corporate Staff Costs,Employee Expenses,3011
Redditch Borough Council,16/05/2018,296870,IN00039696,216.00 ,8.00 ,Worcestershire County Council,195,St Davids House,Employee Expenses,3011
Redditch Borough Council,23/05/2018,298578,IN00044665,"49,954.31 ",0.00 ,Worcestershire County Council,195,Central Post,Actuarial Strain,2900
Redditch Borough Council,23/05/2018,298578,IN00044665,"19,623.70 ",0.00 ,Worcestershire County Council,195,Community Parks & Open Spaces,Actuarial Strain,2900
Redditch Borough Council,23/05/2018,298578,IN00044665,"58,823.46 ",0.00 ,Worcestershire County Council,195,Compliance,Actuarial Strain,2900
Redditch Borough Council,23/05/2018,298578,IN00044665,"6,772.36 ",0.00 ,Worcestershire County Council,195,Customer Support,Actuarial Strain,2900
Redditch Borough Council,23/05/2018,298578,IN00044665,"23,555.84 ",0.00 ,Worcestershire County Council,195,Human Resources,Actuarial Strain,2900
Redditch Borough Council,23/05/2018,298578,IN00044665,"83,657.09 ",0.00 ,Worcestershire County Council,195,Non - Distributable Costs,Employee Expenses,3011
Redditch Borough Council,23/05/2018,298578,IN00044665,"70,741.51 ",0.00 ,Worcestershire County Council,195,Welfare Support,Actuarial Strain,2900
Redditch Borough Council,16/05/2018,299322,80013394,"3,500.00 ",700.00 ,Wyre Forest District Council,1922,Community Parks & Open Spaces,Grounds Maintenance,3200
Redditch Borough Council,02/05/2018,297687,2018247,"8,534.60 ","1,706.92 ",Xpress Software Solutions,35132,Register Of Electors,Ict,4500
Redditch Borough Council,23/05/2018,298390,20,"18,475.00 ",923.75 ,Yes Energy Solutions,63937,Rbc Balance Sheet,Contract Payments,8131
Redditch Borough Council,09/05/2018,299011,26728,"4,791.66 ",958.33 ,Ymca,661,Community Development,Salaries,3000
Redditch Borough Council,31/05/2018,298027,00000190,"3,914.75 ",0.00 ,Your Ideas Ltd,4796,Community Centres,Other Fees,4360
Redditch Borough Council,02/05/2018,298228,I-0507570,"2,464.00 ",415.40 ,Zoggs Retail,5823,Indoor Sports & Rec Facilities,Furniture & Equipment Purchase,4000
,,,,"3,554,098.90 ","555,689.61 ",,,,,
